fUSD/lending_fUSD_20260226
["ID","MTS","AMOUNT","RATE_DAILY","PERIOD"]
[406729446,1772124648247,-150.0,0.0001638,2]
[406729447,1772124648257,-187.29970089,0.00016382,2]
[406729448,1772124648267,-156.66979557,0.00016382,2]
[406729449,1772124648275,-339.21457322,0.00016382,2]
[406729450,1772124648284,-150.0,0.00016386,2]
[406729451,1772124648294,-150.0,0.00016388,2]
[406729452,1772124648303,-150.0,0.00016388,2]
[406729453,1772124648312,-150.0,0.00016391,2]
[406729454,1772124648323,-187.29970089,0.000164,2]
[406729455,1772124648331,-156.66979557,0.000164,2]
[406729456,1772124648341,-339.21457322,0.000164,2]
[406729457,1772124648350,-845.0,0.000164,2]
[406729458,1772124648359,-150.0,0.00016409,2]
[406729459,1772124648368,-150.0,0.00016412,2]
[406729460,1772124648379,-150.0,0.00016415,2]
[406729461,1772124648388,-187.29970089,0.00016418,2]
[406729462,1772124648397,-156.66979557,0.00016418,2]
[406729463,1772124648407,-339.21457322,0.00016418,2]
[406729464,1772124648416,-150.0,0.00016418,2]
[406729465,1772124648428,-150.0,0.00016425,2]
[406729466,1772124648438,-150.0,0.0001643,2]
[406729467,1772124648448,-150.0,0.00016435,2]
[406729468,1772124648457,-150.0,0.00016435,2]
[406729469,1772124648467,-187.29970089,0.00016436,2]
[406729470,1772124648476,-156.66979557,0.00016436,2]
[406729471,1772124648486,-339.21457322,0.00016436,2]
[406729472,1772124648495,-606.4,0.00016438,2]
[406729473,1772124648505,-500.0,0.00016438,2]
[406729474,1772124648514,-150.0,0.00016442,2]
[406729475,1772124648524,-150.0,0.00016445,2]
[406729476,1772124648534,-150.0,0.00016448,2]
[406729477,1772124648543,-150.0,0.00016451,2]
[406729478,1772124648552,-187.29970089,0.00016455,2]
[406729479,1772124648562,-156.66979557,0.00016455,2]
[406729480,1772124648571,-339.21457322,0.00016455,2]
[406729481,1772124648581,-150.0,0.00016457,2]
[406729482,1772124648591,-150.0,0.00016457,2]
[406729483,1772124648602,-150.0,0.00016465,2]
[406729484,1772124648611,-150.0,0.00016469,2]
[406729485,1772124648620,-150.0,0.0001647,2]
[406729486,1772124648630,-150.0,0.00016472,2]
[406729487,1772124648639,-187.29970089,0.00016473,2]
[406729488,1772124648648,-156.66979557,0.00016473,2]
[406729489,1772124648657,-339.21457322,0.00016473,2]
[406729490,1772124648666,-150.0,0.00016473,2]
[406729491,1772124648676,-187.29970089,0.00016491,2]
[406729492,1772124648686,-156.66979557,0.00016491,2]
[406729493,1772124648696,-339.21457322,0.00016491,2]
[406729494,1772124648705,-500.0,0.00016493,2]
[406729495,1772124648714,-150.0,0.00016493,2]
[406729496,1772124648724,-150.0,0.00016496,2]
[406729497,1772124648732,-150.0,0.000165,2]
[406729498,1772124648742,-187.29970089,0.00016509,2]
[406729499,1772124648751,-156.66979557,0.00016509,2]
[406729500,1772124648760,-339.21457322,0.00016509,2]
[406729501,1772124648769,-150.0,0.0001651,2]
[406729502,1772124648778,-150.0,0.00016513,2]
[406729503,1772124648788,-150.0,0.00016513,2]
[406729504,1772124648798,-150.0,0.00016514,2]
[406729505,1772124648807,-150.0,0.00016515,2]
[406729506,1772124648820,-150.0,0.00016518,2]
[406729507,1772124648829,-150.0,0.00016522,2]
[406729508,1772124648839,-187.29970089,0.00016527,2]
[406729509,1772124648849,-156.66979557,0.00016527,2]
[406729510,1772124648860,-339.21457322,0.00016527,2]
[406729511,1772124648869,-150.0,0.00016527,2]
[406729512,1772124648879,-150.0,0.00016535,2]
[406729513,1772124648889,-187.29970089,0.00016545,2]
[406729514,1772124648898,-156.66979557,0.00016545,2]
[406729515,1772124649031,-339.21457322,0.00016545,2]
[406729516,1772124649041,-500.0,0.00016548,2]
[406729517,1772124649050,-150.0,0.00016549,2]
[406729518,1772124649060,-150.0,0.00016555,2]
[406729519,1772124649071,-150.0,0.00016556,2]
[406729520,1772124649080,-150.0,0.0001656,2]
[406729521,1772124649090,-150.0,0.0001656,2]
[406729522,1772124649099,-187.29970089,0.00016564,2]
[406729523,1772124649108,-156.66979557,0.00016564,2]
[406729524,1772124649117,-339.21457322,0.00016564,2]
[406729525,1772124649126,-150.0,0.00016571,2]
[406729526,1772124649135,-150.0,0.00016572,2]
[406729527,1772124649145,-150.0,0.00016576,2]
[406729528,1772124649154,-150.0,0.00016577,2]
[406729529,1772124649166,-187.29970089,0.00016582,2]
[406729530,1772124649176,-156.66979557,0.00016582,2]
[406729531,1772124649185,-339.21457322,0.00016582,2]
[406729532,1772124649194,-150.0,0.00016582,2]
[406729533,1772124649203,-553.32,0.00016588,2]
[406729534,1772124649212,-150.0,0.00016591,2]
[406729535,1772124649222,-150.0,0.00016591,2]
[406729536,1772124649231,-150.0,0.00016598,2]
[406729537,1772124649240,-187.29970089,0.000166,2]
[406729538,1772124649250,-156.66979557,0.000166,2]
[406729539,1772124649259,-339.21457322,0.000166,2]
[406729540,1772124649268,-500.0,0.00016602,2]
[406729541,1772124649277,-150.0,0.00016603,2]
[406729542,1772124649287,-150.0,0.00016605,2]
[406729543,1772124649296,-150.0,0.00016609,2]
[406729544,1772124649306,-187.29970089,0.00016618,2]
[406729545,1772124649315,-156.66979557,0.00016618,2]
[406729546,1772124649323,-339.21457322,0.00016618,2]
[406729547,1772124649333,-150.0,0.00016619,2]
[406729548,1772124649343,-150.0,0.00016624,2]
[406729549,1772124649353,-150.0,0.0001663,2]
[406729550,1772124649362,-150.0,0.00016634,2]
[406729551,1772124649372,-187.29970089,0.00016636,2]
[406729552,1772124649381,-156.66979557,0.00016636,2]
[406729553,1772124649390,-339.21457322,0.00016636,2]
[406729554,1772124649400,-150.0,0.00016636,2]
[406729555,1772124649409,-150.0,0.0001664,2]
[406729556,1772124649419,-150.0,0.0001665,2]
[406729557,1772124649428,-187.29970089,0.00016655,2]
[406729558,1772124649437,-156.66979557,0.00016655,2]
[406729559,1772124649449,-339.21457322,0.00016655,2]
[406729560,1772124649458,-150.0,0.00016657,2]
[406729561,1772124649467,-500.0,0.00016657,2]
[406729562,1772124649476,-150.0,0.0001666,2]
[406729563,1772124649485,-150.0,0.00016664,2]
[406729564,1772124649494,-502.0,0.00016665,3]
[406729565,1772124649504,-4991.64015429,0.00016669,2]
[406729566,1772124649513,-150.0,0.0001667,2]
[406729567,1772124649523,-150.0,0.0001667,2]
[406729568,1772124649533,-1000.0,0.0001667,2]
[406729569,1772124649542,-187.29970089,0.00016673,2]
[406729570,1772124649551,-156.66979557,0.00016673,2]
[406729571,1772124649560,-339.21457322,0.00016673,2]
[406729572,1772124649569,-150.0,0.00016676,2]
[406729573,1772124649579,-150.0,0.00016681,2]
[406729574,1772124649589,-150.0,0.00016684,2]
[406729575,1772124649600,-187.29970089,0.00016691,2]
[406729576,1772124649609,-156.66979557,0.00016691,2]
[406729577,1772124649619,-339.21457322,0.00016691,2]
[406729578,1772124649628,-150.0,0.00016691,2]
[406729579,1772124649639,-150.0,0.00016695,2]
[406729580,1772124649648,-150.0,0.00016697,2]
[406729581,1772124649658,-150.0,0.00016702,2]
[406729582,1772124649669,-187.29970089,0.00016709,2]
[406729583,1772124649679,-156.66979557,0.00016709,2]
[406729584,1772124649688,-339.21457322,0.00016709,2]
[406729585,1772124649698,-150.0,0.0001671,2]
[406729586,1772124649708,-500.0,0.00016712,2]
[406729587,1772124649718,-606.4,0.00016712,2]
[406729588,1772124649727,-150.0,0.00016714,2]
[406729589,1772124649737,-150.0,0.00016714,2]
[406729590,1772124649746,-150.0,0.00016718,2]
[406729591,1772124649755,-190.0,0.0001672,2]
[406729592,1772124649764,-150.0,0.00016723,2]
[406729593,1772124649774,-187.29970089,0.00016727,2]
[406729594,1772124649783,-156.66979557,0.00016727,2]
[406729595,1772124649792,-339.21457322,0.00016727,2]
[406729596,1772124649801,-150.0,0.00016729,2]
[406729597,1772124649810,-150.0,0.00016737,2]
[406729598,1772124649820,-150.0,0.0001674,2]
[406729599,1772124649829,-150.0,0.0001674,2]
[406729600,1772124649838,-150.0,0.00016744,2]
[406729601,1772124649847,-187.29970089,0.00016745,2]
[406729602,1772124649860,-156.66979557,0.00016745,2]
[406729603,1772124649869,-339.21457322,0.00016745,2]
[406729604,1772124649878,-150.0,0.00016745,2]
[406729605,1772124649888,-150.0,0.00016748,2]
[406729606,1772124649897,-150.0,0.00016748,2]
[406729607,1772124649907,-150.0,0.00016759,2]
[406729608,1772124649920,-187.29970089,0.00016764,2]
[406729609,1772124649930,-156.66979557,0.00016764,2]
[406729610,1772124649939,-339.21457322,0.00016764,2]
[406729611,1772124649949,-150.0,0.00016764,2]
[406729612,1772124649958,-150.0,0.00016765,2]
[406729613,1772124649967,-500.0,0.00016767,2]
[406729614,1772124649977,-150.0,0.00016773,2]
[406729615,1772124649986,-187.29970089,0.00016782,2]
[406729616,1772124649995,-156.66979557,0.00016782,2]
[406729617,1772124650005,-339.21457322,0.00016782,2]
[406729618,1772124650014,-150.0,0.00016782,2]
[406729619,1772124650024,-150.0,0.00016785,2]
[406729620,1772124650033,-150.0,0.00016786,2]
[406729621,1772124650043,-150.0,0.00016791,2]
[406729622,1772124650052,-187.29970089,0.000168,2]
[406729623,1772124650062,-156.66979557,0.000168,2]
[406729624,1772124650072,-150.0,0.000168,2]
[406729625,1772124650081,-339.21457322,0.000168,2]
[406729626,1772124650091,-150.0,0.000168,2]
[406729627,1772124650101,-27067.80659463,0.00016802,2]
[406729628,1772124650111,-150.0,0.00016807,2]
[406729629,1772124650121,-150.0,0.00016818,2]
[406729630,1772124650130,-187.29970089,0.00016818,2]
[406729631,1772124650140,-156.66979557,0.00016818,2]
[406729632,1772124650150,-339.21457322,0.00016818,2]
[406729633,1772124650160,-150.0,0.00016821,2]
[406729634,1772124650169,-379.89029775,0.00016822,2]
[406729635,1772124650179,-150.0,0.00016826,2]
[406729636,1772124650188,-150.0,0.00016826,2]
[406729637,1772124650197,-150.0,0.00016827,2]
[406729638,1772124650207,-150.0,0.00016828,2]
[406729639,1772124650218,-150.0,0.0001683,2]
[406729640,1772124650228,-150.0,0.00016835,2]
[406729641,1772124650237,-187.29970089,0.00016836,2]
[406729642,1772124650247,-156.66979557,0.00016836,2]
[406729643,1772124650257,-339.21457322,0.00016836,2]
[406729644,1772124650266,-150.0,0.00016845,2]
[406729645,1772124650276,-150.0,0.00016849,2]
[406729646,1772124650286,-187.29970089,0.00016855,2]
[406729647,1772124650295,-156.66979557,0.00016855,2]
[406729648,1772124650304,-339.21457322,0.00016855,2]
[406729649,1772124650314,-150.0,0.00016855,2]
[406729650,1772124650323,-182.57,0.00016862,2]
[406729651,1772124650333,-150.0,0.0001687,2]
[406729652,1772124650342,-150.0,0.00016872,2]
[406729653,1772124650352,-187.29970089,0.00016873,2]
[406729654,1772124650361,-156.66979557,0.00016873,2]
[406729655,1772124650371,-339.21457322,0.00016873,2]
[406729656,1772124650381,-150.0,0.00016875,2]
[406729657,1772124650390,-150.0,0.00016882,2]
[406729658,1772124650400,-150.0,0.00016883,2]
[406729659,1772124650409,-150.0,0.00016888,2]
[406729660,1772124650419,-152.0,0.00016889,7]
[406729661,1772124650428,-150.0,0.00016891,2]
[406729662,1772124650438,-187.29970089,0.00016891,2]
[406729663,1772124650447,-156.66979557,0.00016891,2]
[406729664,1772124650456,-339.21457322,0.00016891,2]
[406729665,1772124650466,-150.0,0.00016899,2]
[406729666,1772124650578,-150.0,0.00016904,2]
[406729667,1772124650598,-150.0,0.00016904,2]
[406729668,1772124650614,-187.29970089,0.00016909,2]
[406729669,1772124650642,-156.66979557,0.00016909,2]
[406729670,1772124650655,-339.21457322,0.00016909,2]
[406729671,1772124650676,-150.0,0.00016909,2]
[406729672,1772124650689,-150.0,0.00016912,2]
[406729673,1772124650700,-150.0,0.0001692,2]
[406729674,1772124650714,-150.0,0.0001692,2]
[406729675,1772124650726,-182.57,0.00016922,2]
[406729676,1772124650753,-152.01,0.00016924,14]
[406729677,1772124650774,-152.0,0.00016924,14]
[406729678,1772124650787,-150.0,0.00016925,2]
[406729679,1772124650805,-187.29970089,0.00016927,2]
[406729680,1772124650818,-156.66979557,0.00016927,2]
[406729681,1772124650832,-339.21457322,0.00016927,2]
[406729682,1772124650843,-150.0,0.00016933,2]
[406729683,1772124650873,-150.0,0.00016936,2]
[406729684,1772124650887,-150.0,0.00016941,2]
[406729685,1772124650902,-150.0,0.00016945,2]
[406729686,1772124650918,-187.29970089,0.00016945,2]
[406729687,1772124650933,-156.66979557,0.00016945,2]
[406729688,1772124650945,-339.21457322,0.00016945,2]
[406729689,1772124650974,-150.0,0.00016952,2]
[406729690,1772124650987,-150.0,0.00016953,2]
[406729691,1772124651000,-187.29970089,0.00016964,2]
[406729692,1772124651013,-156.66979557,0.00016964,2]
[406729693,1772124651031,-339.21457322,0.00016964,2]
[406729694,1772124651043,-150.0,0.00016964,2]
[406729695,1772124651060,-150.0,0.00016965,2]
[406729696,1772124651083,-150.0,0.00016971,2]
[406729697,1772124651101,-150.0,0.00016971,2]
[406729698,1772124651130,-500.0,0.00016974,20]
[406729699,1772124651146,-150.0,0.00016974,2]
[406729700,1772124651158,-151.0,0.00016979,2]
[406729701,1772124651173,-150.0,0.00016979,2]
[406729702,1772124651189,-7950.318215,0.00016982,7]
[406729703,1772124651210,-2361.418626,0.00016982,7]
[406729704,1772124651227,-187.29970089,0.00016982,2]
[406729705,1772124651241,-156.66979557,0.00016982,2]
[406729706,1772124651257,-339.21457322,0.00016982,2]
[406729707,1772124651269,-150.0,0.00016983,2]
[406729708,1772124651281,-150.0,0.00016983,2]
[406729709,1772124651297,-606.4,0.00016986,2]
[406729710,1772124651323,-150.0,0.00016991,2]
[406729711,1772124651336,-150.0,0.00016994,2]
[406729712,1772124651353,-150.0,0.00016995,2]
[406729713,1772124651364,-187.29970089,0.00017,2]
[406729714,1772124651378,-156.66979557,0.00017,2]
[406729715,1772124651390,-339.21457322,0.00017,2]
[406729716,1772124651407,-500.0,0.00017,7]
[406729717,1772124651425,-417.39,0.00017,7]
[406729718,1772124651440,-150.0,0.00017006,2]
[406729719,1772124651451,-150.0,0.00017007,2]
[406729720,1772124651466,-150.0,0.0001701,2]
[406729721,1772124651479,-150.0,0.00017016,2]
[406729722,1772124651494,-187.29970089,0.00017018,2]
[406729723,1772124651514,-156.66979557,0.00017018,2]
[406729724,1772124651533,-339.21457322,0.00017018,2]
[406729725,1772124651546,-150.0,0.00017018,2]
[406729726,1772124651558,-150.0,0.00017033,2]
[406729727,1772124651569,-187.29970089,0.00017036,2]
[406729728,1772124651585,-156.66979557,0.00017036,2]
[406729729,1772124651597,-339.21457322,0.00017036,2]
[406729730,1772124651631,-150.0,0.00017037,2]
[406729731,1772124651645,-200.0,0.00017039,2]
[406729732,1772124651660,-200.0,0.00017039,2]
[406729733,1772124651671,-200.0,0.00017039,2]
[406729734,1772124651683,-200.0,0.00017039,2]
[406729735,1772124651695,-200.0,0.00017039,2]
[406729736,1772124651707,-200.0,0.00017039,2]
[406729737,1772124651717,-200.0,0.00017039,2]
[406729738,1772124651733,-200.0,0.00017039,2]
[406729739,1772124651750,-200.0,0.00017039,2]
[406729740,1772124651766,-200.0,0.00017039,2]
[406729741,1772124651777,-200.0,0.00017039,2]
[406729742,1772124651789,-200.0,0.00017039,2]
[406729743,1772124651801,-200.0,0.00017039,2]
[406729744,1772124651812,-200.0,0.00017039,2]
[406729745,1772124651825,-200.0,0.00017039,2]
[406729746,1772124651839,-200.0,0.00017039,2]
[406729747,1772124651856,-200.0,0.00017039,2]
[406729748,1772124651867,-200.0,0.00017039,2]
[406729749,1772124651880,-200.0,0.00017039,2]
[406729750,1772124651891,-200.0,0.00017039,2]
[406729751,1772124651903,-200.0,0.00017039,2]
[406729752,1772124651917,-200.0,0.00017039,2]
[406729753,1772124651930,-200.0,0.00017039,2]
[406729754,1772124651947,-200.0,0.00017039,2]
[406729755,1772124651965,-200.0,0.00017039,2]
[406729756,1772124651977,-200.0,0.00017039,2]
[406729757,1772124651988,-200.0,0.00017039,2]
[406729758,1772124652000,-200.0,0.00017039,2]
[406729759,1772124652012,-200.0,0.00017039,2]
[406729760,1772124652023,-200.0,0.00017039,2]
[406729761,1772124652035,-200.0,0.00017039,2]
[406729762,1772124652053,-200.0,0.00017039,2]
[406729763,1772124652067,-200.0,0.00017039,2]
[406729764,1772124652081,-200.0,0.00017039,2]
[406729765,1772124652094,-200.0,0.00017039,2]
[406729766,1772124652107,-200.0,0.00017039,2]
[406729767,1772124652122,-240.0,0.00017039,2]
[406729768,1772124652135,-800.0,0.00017039,2]
[406729769,1772124652149,-800.0,0.00017039,2]
[406729770,1772124652185,-800.0,0.00017039,2]
[406729771,1772124652202,-800.0,0.00017039,2]
[406729772,1772124652219,-800.0,0.00017039,2]
[406729773,1772124652232,-800.0,0.00017039,2]
[406729774,1772124652246,-800.0,0.00017039,2]
[406729775,1772124652270,-800.0,0.00017039,2]
[406729776,1772124652285,-800.0,0.00017039,2]
[406729777,1772124652297,-800.0,0.00017039,2]
[406729778,1772124652310,-800.0,0.00017039,2]
[406729779,1772124652323,-800.0,0.00017039,2]
[406729780,1772124652336,-800.0,0.00017039,2]
[406729781,1772124652348,-800.0,0.00017039,2]
[406729782,1772124652362,-800.0,0.00017039,2]
[406729783,1772124652376,-800.0,0.00017039,2]
[406729784,1772124652391,-800.0,0.00017039,2]
[406729785,1772124652405,-800.0,0.00017039,2]
[406729786,1772124652419,-800.0,0.00017039,2]
[406729787,1772124652430,-800.0,0.00017039,2]
[406729788,1772124652442,-800.0,0.00017039,2]
[406729789,1772124652455,-800.0,0.00017039,2]
[406729790,1772124652467,-800.0,0.00017039,2]
[406729791,1772124652487,-800.0,0.00017039,2]
[406729792,1772124652502,-800.0,0.00017039,2]
[406729793,1772124652516,-800.0,0.00017039,2]
[406729794,1772124652527,-800.0,0.00017039,2]
[406729795,1772124652539,-800.0,0.00017039,2]
[406729796,1772124652552,-800.0,0.00017039,2]
[406729797,1772124652571,-800.0,0.00017039,2]
[406729798,1772124652590,-800.0,0.00017039,2]
[406729799,1772124652610,-800.0,0.00017039,2]
[406729800,1772124652625,-800.0,0.00017039,2]
[406729801,1772124652641,-800.0,0.00017039,2]
[406729802,1772124652653,-800.0,0.00017039,2]
[406729803,1772124652671,-800.0,0.00017039,2]
[406729804,1772124652685,-800.0,0.00017039,2]
[406729805,1772124652810,-800.0,0.00017039,2]
[406729806,1772124652826,-800.0,0.00017039,2]
[406729807,1772124652840,-800.0,0.00017039,2]
[406729808,1772124652852,-800.0,0.00017039,2]
[406729809,1772124652864,-800.0,0.00017039,2]
[406729810,1772124652877,-433.0,0.00017039,2]
[406729811,1772124652890,-2844.0,0.0001704,2]
[406729812,1772124652907,-160.0,0.0001704,2]
[406729813,1772124652928,-150.0,0.00017045,2]
[406729814,1772124652943,-150.0,0.00017047,2]
[406729815,1772124652957,-187.29970089,0.00017055,2]
[406729816,1772124652970,-156.66979557,0.00017055,2]
[406729817,1772124652985,-339.21457322,0.00017055,2]
[406729818,1772124652998,-150.0,0.00017055,2]
[406729819,1772124653010,-1000.0,0.00017058,2]
[406729820,1772124653031,-150.0,0.00017058,2]
[406729821,1772124653047,-150.0,0.0001706,2]
[406729822,1772124653063,-150.0,0.00017061,2]
[406729823,1772124653075,-150.0,0.00017061,2]
[406729824,1772124653088,-150.0,0.00017069,2]
[406729825,1772124653102,-187.29970089,0.00017073,2]
[406729826,1772124653115,-156.66979557,0.00017073,2]
[406729827,1772124653143,-339.21457322,0.00017073,2]
[406729828,1772124653157,-150.0,0.00017073,2]
[406729829,1772124653174,-150.0,0.00017079,2]
[406729830,1772124653186,-150.0,0.00017087,2]
[406729831,1772124653198,-187.29970089,0.00017091,2]
[406729832,1772124653211,-156.66979557,0.00017091,2]
[406729833,1772124653230,-339.21457322,0.00017091,2]
[406729834,1772124653253,-151.0,0.00017099,2]
[406729835,1772124653268,-500.0,0.00017099,2]
[406729836,1772124653283,-500.0,0.00017099,2]
[406729837,1772124653296,-500.0,0.00017099,2]
[406729838,1772124653309,-500.0,0.00017099,2]
[406729839,1772124653321,-500.0,0.00017099,2]
[406729840,1772124653333,-500.0,0.00017099,2]
[406729841,1772124653356,-500.0,0.00017099,2]
[406729842,1772124653370,-373.19905658,0.00017099,2]
[406729843,1772124653380,-500.0,0.00017099,2]
[406729844,1772124653391,-500.0,0.00017099,2]
[406729845,1772124653401,-500.0,0.00017099,2]
[406729846,1772124653412,-500.0,0.00017099,2]
[406729847,1772124653423,-309.29654756,0.00017099,2]
[406729848,1772124653434,-150.0,0.000171,2]
[406729849,1772124653445,-150.0,0.000171,2]
[406729850,1772124653456,-150.0,0.000171,2]
[406729851,1772124653467,-150.0,0.000171,2]
[406729852,1772124653478,-150.0,0.000171,2]
[406729853,1772124653491,-150.0,0.000171,2]
[406729854,1772124653500,-18386.068904,0.000171,2]
[406729855,1772124653510,-5436.70489032,0.000171,2]
[406729856,1772124653520,-187.29970089,0.00017109,2]
[406729857,1772124653531,-156.66979557,0.00017109,2]
[406729858,1772124653542,-339.21457322,0.00017109,2]
[406729859,1772124653553,-150.0,0.00017113,2]
[406729860,1772124653567,-150.0,0.00017121,2]
[406729861,1772124653578,-187.29970089,0.00017127,2]
[406729862,1772124653588,-156.66979557,0.00017127,2]
[406729863,1772124653598,-339.21457322,0.00017127,2]
[406729864,1772124653609,-150.0,0.00017127,2]
[406729865,1772124653620,-150.0,0.00017131,2]
[406729866,1772124653630,-150.0,0.00017139,2]
[406729867,1772124653640,-150.0,0.00017139,2]
[406729868,1772124653651,-150.0,0.0001714,2]
[406729869,1772124653671,-150.0,0.00017142,2]
[406729870,1772124653690,-150.0,0.00017145,2]
[406729871,1772124653710,-187.29970089,0.00017145,2]
[406729872,1772124653738,-156.66979557,0.00017145,2]
[406729873,1772124653755,-339.21457322,0.00017145,2]
[406729874,1772124653774,-150.0,0.00017153,2]
[406729875,1772124653792,-150.0,0.00017155,2]
[406729876,1772124653811,-150.0,0.00017163,2]
[406729877,1772124653830,-187.29970089,0.00017164,2]
[406729878,1772124653848,-156.66979557,0.00017164,2]
[406729879,1772124653869,-339.21457322,0.00017164,2]
[406729880,1772124653886,-150.0,0.00017167,2]
[406729881,1772124653899,-187.29970089,0.00017182,2]
[406729882,1772124653924,-156.66979557,0.00017182,2]
[406729883,1772124653937,-339.21457322,0.00017182,2]
[406729884,1772124653955,-150.0,0.00017182,2]
[406729885,1772124653969,-150.0,0.00017184,2]
[406729886,1772124653990,-150.0,0.0001719,2]
[406729887,1772124654007,-150.0,0.00017193,2]
[406729888,1772124654023,-150.0,0.00017194,2]
[406729889,1772124654038,-187.29970089,0.000172,2]
[406729890,1772124654055,-156.66979557,0.000172,2]
[406729891,1772124654073,-339.21457322,0.000172,2]
[406729892,1772124654090,-1306.0,0.000172,2]
[406729893,1772124654106,-1911.0,0.000172,2]
[406729894,1772124654123,-150.0,0.00017205,2]
[406729895,1772124654140,-150.0,0.00017206,2]
[406729896,1772124654155,-150.0,0.00017209,2]
[406729897,1772124654172,-150.0,0.00017217,2]
[406729898,1772124654188,-150.0,0.00017217,2]
[406729899,1772124654207,-187.29970089,0.00017218,2]
[406729900,1772124654222,-156.66979557,0.00017218,2]
[406729901,1772124654253,-339.21457322,0.00017218,2]
[406729902,1772124654269,-150.0,0.00017221,2]
[406729903,1772124654285,-150.0,0.00017226,2]
[406729904,1772124654302,-150.0,0.00017229,2]
[406729905,1772124654318,-150.0,0.00017229,2]
[406729906,1772124654335,-150.0,0.00017235,2]
[406729907,1772124654351,-187.29970089,0.00017236,2]
[406729908,1772124654369,-156.66979557,0.00017236,2]
[406729909,1772124654385,-339.21457322,0.00017236,2]
[406729910,1772124654401,-150.0,0.00017236,2]
[406729911,1772124654417,-150.0,0.00017247,2]
[406729912,1772124654433,-150.0,0.00017248,2]
[406729913,1772124654449,-187.29970089,0.00017255,2]
[406729914,1772124654465,-156.66979557,0.00017255,2]
[406729915,1772124654482,-339.21457322,0.00017255,2]
[406729916,1772124654500,-150.0,0.00017255,2]
[406729917,1772124654517,-150.0,0.00017259,2]
[406729918,1772124654533,-606.4,0.0001726,2]
[406729919,1772124654549,-1000.0,0.0001726,2]
[406729920,1772124654565,-150.0,0.00017264,2]
[406729921,1772124654580,-150.0,0.00017267,2]
[406729922,1772124654595,-187.29970089,0.00017273,2]
[406729923,1772124654611,-156.66979557,0.00017273,2]
[406729924,1772124654628,-339.21457322,0.00017273,2]
[406729925,1772124654643,-150.0,0.00017275,2]
[406729926,1772124654660,-150.0,0.0001728,2]
[406729927,1772124654675,-150.0,0.0001728,2]
[406729928,1772124654690,-150.0,0.00017288,2]
[406729929,1772124654706,-187.29970089,0.00017291,2]
[406729930,1772124654721,-156.66979557,0.00017291,2]
[406729931,1772124654746,-339.21457322,0.00017291,2]
[406729932,1772124654896,-150.0,0.00017291,2]
[406729933,1772124654921,-150.0,0.00017296,2]
[406729934,1772124654931,-150.0,0.00017296,2]
[406729935,1772124654942,-150.0,0.00017301,2]
[406729936,1772124654952,-187.29970089,0.00017309,2]
[406729937,1772124654963,-156.66979557,0.00017309,2]
[406729938,1772124654974,-339.21457322,0.00017309,2]
[406729939,1772124654984,-150.0,0.00017309,2]
[406729940,1772124654995,-150.0,0.00017312,2]
[406729941,1772124655007,-150.0,0.00017317,2]
[406729942,1772124655018,-150.0,0.00017318,2]
[406729943,1772124655030,-150.0,0.00017325,2]
[406729944,1772124655040,-187.29970089,0.00017327,2]
[406729945,1772124655051,-156.66979557,0.00017327,2]